bitfinex-derivatives/quotes_SOLF0:USTF0_20250206
["timestamp","ask_amount","ask_price","bid_price","bid_amount"]
[1738813289902,0.03624502,200.8,200.75,5.01706723]
[1738813290307,0.03624502,200.8,200.76,13.35193233]
[1738813291503,0.03624502,200.8,200.76,18.33263233]
[1738813291703,0.03624502,200.8,200.76,13.35193233]
[1738813293603,0.03624502,200.8,200.76,18.33263233]
[1738813294207,0.03624502,200.8,200.77,4.9805]
[1738813294408,0.03624502,200.8,200.76,13.35193233]
[1738813297011,5.01604502,200.8,200.76,13.35193233]
[1738813297311,0.03624502,200.8,200.75,0.03606723]
[1738813297913,4.9802,200.79,200.75,0.03606723]
[1738813298315,0.03624502,200.8,200.76,13.35193233]
[1738813299107,5.01604502,200.8,200.76,13.35193233]
[1738813299313,0.03624502,200.8,200.76,13.35193233]
[1738813299613,0.03624502,200.8,200.79,13.35193233]
[1738813304711,0.03624502,200.8,200.76,13.35193233]
[1738813304919,4.9803,200.78,200.76,13.35193233]
[1738813306016,5.01624502,200.8,200.76,13.35193233]
[1738813306513,0.03624502,200.8,200.76,13.35193233]
[1738813307615,0.03624502,200.8,200.79,13.35193233]
[1738813310621,4.9784,200.86,200.79,18.33193233]
[1738813310817,4.9784,200.86,200.82,13.35193233]
[1738813311122,1.4616,200.92,200.82,13.35193233]
[1738813311518,4.9776,200.89,200.82,18.33113233]
[1738813311815,0.03537228,200.88,200.85,13.35193233]
[1738813312318,4.9781,200.87,200.83,0.03458109]
[1738813316830,0.03537228,200.88,200.83,5.01358109]
[1738813317025,0.03537228,200.88,200.85,13.35193233]
[1738813320625,0.03537228,200.88,200.87,8.56053295]
[1738813320826,5.01317228,200.88,200.87,8.56053295]
[1738813324031,0.03537228,200.88,200.87,8.56053295]
[1738813327132,1.5918,200.99,200.87,8.56053295]
[1738813327324,1.5918,200.99,200.93,8.56053295]
[1738813327937,4.9763,200.95,200.93,8.56053295]
[1738813328633,0.03479258,200.96,200.93,8.56053295]
[1738813328831,0.03479258,200.96,200.95,8.56053295]
[1738813329832,8.56053295,201.07,200.95,8.56053295]
[1738813330032,8.56053295,201.09,201.02,8.56053295]
[1738813330631,190.0,201.1,200.99,13.35669366]
[1738813331037,0.03422502,201.06,201.01,0.03757967]
[1738813331331,4.9737,201.05,201.01,0.03757967]
[1738813332632,0.03422502,201.06,201.01,0.03757967]
[1738813332832,0.03422502,201.06,201.02,13.35669366]
[1738813333429,0.03422502,201.06,201.05,13.35669366]
[1738813333640,190.0,201.16,201.05,13.35669366]
[1738813334136,4.9717,201.13,201.05,13.35669366]
[1738813334432,190.0,201.16,201.05,13.35669366]
[1738813334841,0.03214886,201.13,201.08,0.03520107]
[1738813335040,4.9722,201.11,201.08,0.03520107]
[1738813335742,4.9724,201.1,201.08,0.03520107]
[1738813336141,0.03214886,201.13,201.08,0.03520107]
[1738813336442,4.9726,201.09,201.08,0.03520107]
[1738813338150,4.9723,201.11,201.08,0.03520107]
[1738813338340,0.03214886,201.13,201.08,0.03520107]
[1738813339747,4.9726,201.09,201.08,0.03520107]
[1738813343051,4.9724,201.1,201.08,0.03520107]
[1738813343748,0.03214886,201.13,201.08,0.03520107]
[1738813344353,0.03214886,201.13,201.08,5.00800107]
[1738813344548,0.03214886,201.13,201.08,0.03520107]
[1738813345051,4.9724,201.1,201.08,0.03520107]
[1738813345354,0.03214886,201.13,201.08,0.03520107]
[1738813345748,4.9726,201.09,201.08,0.03520107]
[1738813355252,0.03214886,201.13,201.08,0.03520107]
[1738813355549,0.03214886,201.13,201.08,13.39189473]
[1738813355751,4.9705,201.18,201.11,18.32879366]
[1738813355953,4.9705,201.18,201.11,13.35669366]
[1738813356159,13.35669366,201.25,201.11,13.35669366]
[1738813356361,4.9697,201.21,201.11,13.35669366]
[1738813356561,13.35669366,201.25,201.11,13.35669366]
[1738813357061,0.03199316,201.2,201.16,0.03743271]
[1738813357463,4.9706,201.18,201.16,0.03743271]
[1738813357960,4.9706,201.18,201.16,3.271e-05]
[1738813361261,4.9706,201.17,201.16,3.271e-05]
[1738813371163,4.9703,201.19,201.16,3.271e-05]
[1738813373270,0.03199316,201.2,201.16,3.271e-05]
[1738813373665,0.03199316,201.2,201.17,4.9705]
[1738813374370,0.03199316,201.2,201.17,18.32719366]
[1738813375069,0.03199316,201.2,201.16,3.271e-05]
[1738813376069,4.9702,201.19,201.16,3.271e-05]
[1738813377969,4.9706,201.18,201.16,3.271e-05]
[1738813381376,4.9706,201.17,201.16,3.271e-05]
[1738813391980,13.35669366,201.19,201.06,1.4604]
[1738813392182,13.35669366,201.15,201.06,1.4604]
[1738813392580,8.54510299,201.12,201.06,1.4604]
[1738813392785,4.9724,201.1,201.06,1.4604]
[1738813393183,5.00582427,201.1,201.06,1.49491758]
[1738813393676,0.03342427,201.1,201.06,1.49491758]
[1738813393881,4.9728,201.09,201.06,1.49491758]
[1738813395285,0.03342427,201.1,201.06,1.49491758]
[1738813395486,4.9729,201.08,201.06,1.49491758]
[1738813398783,4.9731,201.07,201.06,0.03451758]
[1738813399186,4.9731,201.07,201.06,1.758e-05]
[1738813400689,18.33685341,201.07,201.06,1.758e-05]
[1738813405796,13.36375341,201.07,200.97,1.6085]
[1738813405998,4.9753,200.99,200.97,1.6085]
[1738813406395,13.36375341,201.07,200.92,13.36375341]
[1738813406591,4.9753,200.98,200.92,13.36375341]
[1738813407100,4.9758,200.96,200.93,0.03327829]
[1738813407294,0.03753067,200.97,200.93,0.03327829]
[1738813408697,4.9758,200.96,200.93,0.03327829]
[1738813408998,0.03753067,200.97,200.93,0.03327829]
[1738813409796,4.9763,200.94,200.93,0.03327829]
[1738813410600,5.01313067,200.97,200.93,0.03327829]
[1738813410799,0.03753067,200.97,200.93,0.03327829]
[1738813412097,4.9758,200.96,200.93,0.03327829]
[1738813412302,0.03753067,200.97,200.93,0.03327829]
[1738813413097,4.9759,200.96,200.93,0.03327829]
[1738813413303,0.03753067,200.97,200.93,0.03327829]
[1738813414299,4.9763,200.95,200.93,0.03327829]
[1738813417107,0.03753067,200.97,200.93,0.03327829]
[1738813417407,4.9763,200.94,200.93,0.03327829]
[1738813418302,0.03753067,200.97,200.93,0.03327829]
[1738813419508,5.01323067,200.97,200.93,0.03327829]
[1738813420205,4.9759,200.96,200.93,0.03327829]
[1738813420406,0.03753067,200.97,200.95,13.36375341]
[1738813420607,11.61557378,201.09,200.96,8.54717378]
[1738813420907,11.61557378,201.09,201.02,8.54717378]
[1738813421609,4.9734,201.06,201.02,8.54717378]
[1738813421808,4.9734,201.06,201.03,0.03203526]
[1738813423012,5.00942783,201.08,201.03,0.03203526]
[1738813423813,0.03632783,201.08,201.04,8.54717378]
[1738813425416,0.03632783,201.08,201.04,13.52087378]
[1738813427120,0.03632783,201.08,201.04,8.54717378]
[1738813427820,8.54717378,201.15,201.06,8.54717378]
[1738813428019,8.54717378,201.17,201.08,8.54717378]
[1738813428916,4.9714,201.14,201.1,0.03618612]
[1738813429120,0.03530202,201.15,201.1,0.03618612]
[1738813430119,0.03530202,201.15,201.1,5.00848612]
[1738813430318,0.03530202,201.15,201.1,13.5556599]
[1738813430512,0.03530202,201.15,201.12,8.54717378]
[1738813430820,4.9699,201.2,201.14,8.54717378]
[1738813431721,4.9699,201.2,201.14,13.51857378]
[1738813431922,0.033848,201.19,201.15,0.03587415]
[1738813433926,0.033848,201.19,201.15,5.00697415]
[1738813435222,0.033848,201.19,201.16,8.54717378]
[1738813435528,0.033848,201.19,201.16,13.51797378]
[1738813435920,0.033848,201.19,201.16,15.10047378]
[1738813436227,0.033848,201.19,201.16,1.5825]
[1738813436826,8.58102178,201.19,201.15,0.03587415]
[1738813437129,8.54717378,201.17,201.15,0.03587415]
[1738813437826,4.9709,201.16,201.15,0.03587415]
[1738813438919,4.9709,201.16,201.15,7.415e-05]
[1738813440520,13.51777378,201.17,201.15,7.415e-05]
[1738813440727,8.54717378,201.17,201.15,7.415e-05]
[1738813441426,4.9709,201.16,201.15,7.415e-05]
[1738813443134,8.54717378,201.17,201.04,8.54717378]
[1738813443329,8.54717378,201.09,201.01,1.4634]
[1738813443834,4.9734,201.06,201.01,1.4634]
[1738813444032,8.54717378,201.09,201.01,1.4634]
[1738813444325,4.9735,201.06,201.03,0.03704491]
[1738813445332,0.03685885,201.07,201.03,0.03704491]
[1738813445333,4.9737,201.05,201.03,0.03704491]
[1738813447033,0.03685885,201.07,201.03,0.03704491]
[1738813451931,13.35882693,201.16,201.03,0.03704491]
[1738813452132,13.35882693,201.23,201.09,13.35882693]
[1738813452329,1.5191,201.22,201.09,13.35882693]
[1738813453138,0.03511282,201.18,201.13,0.03641442]
[1738813453729,4.9712,201.15,201.13,0.03641442]
[1738813458140,13.35882693,201.17,201.13,0.03641442]
[1738813458343,4.9714,201.14,201.13,0.03641442]
[1738813465340,13.35882693,201.14,201.02,13.35882693]
[1738813465638,190.0,201.21,201.02,13.35882693]
[1738813465839,13.35882693,201.17,201.02,13.35882693]
[1738813466536,0.03789792,201.12,201.07,0.037413]
[1738813466743,4.9725,201.1,201.07,0.037413]
[1738813471344,0.03789792,201.12,201.07,0.037413]
[1738813471549,4.9723,201.11,201.07,0.037413]
[1738813472746,0.03789792,201.12,201.07,0.037413]
[1738813472946,4.9728,201.08,201.07,0.037413]
[1738813473147,8.54454914,201.09,200.97,8.54454914]
[1738813473449,8.54454914,201.02,200.95,145.63139743]
[1738813473848,4.9748,201.01,200.95,145.63139743]
[1738813474050,8.54454914,201.02,200.95,145.63139743]
[1738813474351,0.03753328,201.0,200.96,0.03282307]
[1738813475746,4.9751,200.99,200.96,0.03282307]
[1738813476550,4.9751,200.99,200.98,27.4081314]
[1738813476745,0.03753328,201.0,200.98,27.4081314]
[1738813477446,5.01243328,201.0,200.98,27.4081314]
[1738813478748,0.03753328,201.0,200.98,27.4081314]
[1738813479349,4.9751,200.99,200.98,27.4081314]
[1738813479550,4.9751,200.99,200.96,0.03282307]
[1738813483155,5.01243328,201.0,200.96,0.03282307]
[1738813483358,0.03753328,201.0,200.96,0.03282307]
[1738813483658,4.9753,200.99,200.96,0.03282307]
[1738813484658,0.03753328,201.0,200.96,0.03282307]
[1738813486261,0.03753328,201.0,200.97,4.9755]
[1738813487960,4.9751,200.99,200.96,0.03282307]
[1738813490459,0.03753328,201.0,200.96,0.03282307]
[1738813490662,0.03753328,201.0,200.96,5.00842307]
[1738813492065,0.03753328,201.0,200.96,0.03282307]
[1738813492265,0.03753328,201.0,200.97,13.36537031]
[1738813492662,0.03753328,201.0,200.98,4.9753]
[1738813492962,0.03753328,201.0,200.96,0.03282307]
[1738813493571,0.03753328,201.0,200.97,4.9755]
[1738813494270,5.01233328,201.0,200.96,0.03282307]
[1738813494467,0.03753328,201.0,200.96,0.03282307]
[1738813495774,4.9753,200.99,200.96,0.03282307]
[1738813497079,0.03753328,201.0,200.97,8.55291869]
[1738813499078,0.03753328,201.0,200.96,0.03282307]
[1738813500772,0.03753328,201.0,200.99,8.55291869]
[1738813500977,0.03753328,201.0,200.97,8.55291869]
[1738813501180,4.9752,200.99,200.96,0.03282307]
[1738813501382,0.03753328,201.0,200.96,0.03282307]
[1738813501978,4.9754,200.98,200.96,0.03282307]
[1738813503181,4.9751,200.99,200.96,0.03282307]
[1738813506176,4.9753,200.98,200.96,0.03282307]
[1738813506383,0.03753328,201.0,200.96,0.03282307]
[1738813507884,4.9756,200.97,200.96,0.03282307]
[1738813509683,8.55291869,200.98,200.94,4.30896583]
[1738813509878,13.52901869,200.95,200.94,4.30896583]
[1738813510083,8.55291869,200.95,200.93,4.42823285]
[1738813510387,8.55291869,200.95,200.92,20.55609855]
[1738813510583,8.55291869,200.93,200.92,20.55609855]
[1738813510886,8.55291869,200.93,200.92,12.05379855]
[1738813511083,8.55291869,200.93,200.91,54.81626282]
[1738813511084,4.9768,200.92,200.91,54.81626282]
[1738813512483,4.9768,200.92,200.91,47.32806282]
[1738813513688,4.9768,200.92,200.91,44.90376282]
[1738813513989,4.9771,200.91,200.9,0.03522506]
[1738813514187,13.53001869,200.91,200.9,0.03522506]
[1738813516388,4.9786,200.85,200.8,3.0558]
[1738813516691,4.9786,200.85,200.8,1.5783]
[1738813517191,13.53131869,200.86,200.8,1.5783]
[1738813517591,13.53131869,200.86,200.81,0.03375609]
[1738813517592,0.03633705,200.85,200.81,0.03375609]
[1738813517793,5.01493705,200.85,200.81,0.03375609]
[1738813519396,0.03633705,200.85,200.81,0.03375609]
[1738813523797,4.9788,200.84,200.81,0.03375609]
[1738813524495,0.03633705,200.85,200.81,8.58667478]
[1738813524999,5.01483705,200.85,200.81,8.58667478]
[1738813525198,0.03633705,200.85,200.81,0.03375609]
[1738813525798,4.9788,200.84,200.81,0.03375609]
[1738813526000,0.03633705,200.85,200.81,0.03375609]
[1738813526199,0.03633705,200.85,200.81,8.58667478]
[1738813527891,0.03633705,200.85,200.83,8.55291869]
[1738813530598,0.03633705,200.85,200.81,8.58667478]
[1738813534303,0.03633705,200.85,200.81,13.56617478]
[1738813535404,0.03633705,200.85,200.81,8.58667478]
[1738813536203,0.03633705,200.85,200.81,0.03375609]
[1738813537807,5.01513705,200.85,200.81,0.03375609]
[1738813538205,0.03633705,200.85,200.81,0.03375609]
[1738813539910,4.9791,200.83,200.81,0.03375609]
[1738813543015,13.53221869,200.82,200.81,0.03375609]
[1738813543503,8.55291869,200.82,200.71,20.60652505]
[1738813543710,8.55291869,200.76,200.71,20.60652505]
[1738813544710,0.03175523,200.76,200.71,29.19572229]
[1738813545118,0.03175523,200.76,200.73,8.55291869]
[1738813545915,0.03175523,200.76,200.73,13.53431869]
[1738813546219,0.03175523,200.76,200.73,4.9814]
[1738813546406,0.03175523,200.76,200.71,13.57099724]
[1738813548510,0.03175523,200.76,200.71,0.03627855]
[1738813548511,8.58467392,200.76,200.71,0.03627855]
[1738813548715,8.55291869,200.74,200.71,0.03627855]
[1738813548918,8.55291869,200.72,200.71,0.03627855]
[1738813549612,13.53471869,200.72,200.71,0.03627855]
[1738813550316,8.55291869,200.74,200.71,0.03627855]
[1738813550513,13.53431869,200.74,200.71,0.03627855]
[1738813550714,8.58467392,200.76,200.71,0.03627855]
[1738813551021,0.03175523,200.76,200.73,4.9814]
[1738813551411,0.03175523,200.76,200.71,8.58919724]
[1738813551616,8.58467392,200.76,200.71,0.03627855]
[1738813551816,8.55291869,200.74,200.71,0.03627855]
[1738813552411,8.55291869,200.72,200.71,0.03627855]
[1738813552621,13.53471869,200.72,200.71,0.03627855]
[1738813553423,4.9818,200.72,200.71,0.03627855]
[1738813553916,4.9813,200.75,200.71,0.03627855]
[1738813554112,8.58467392,200.76,200.71,0.03627855]
[1738813555718,13.56567392,200.76,200.71,0.03627855]
[1738813555922,8.58467392,200.76,200.71,0.03627855]
[1738813557730,13.56547392,200.76,200.71,0.03627855]
[1738813558623,0.03175523,200.76,200.72,4.9817]
[1738813560631,0.03175523,200.76,200.73,4.9815]
[1738813561633,0.03175523,200.76,200.71,10.06969724]
[1738813561927,8.58467392,200.76,200.71,1.51677855]
[1738813562334,13.56567392,200.76,200.71,1.51677855]
[1738813563734,0.03175523,200.76,200.73,8.55291869]
[1738813564233,0.03175523,200.76,200.75,4.981]
[1738813565431,8.55291869,200.8,200.75,4.981]
[1738813565635,8.55291869,200.86,200.79,8.55291869]
[1738813566237,8.55291869,200.84,200.77,8.55291869]
[1738813566437,8.55291869,200.86,200.77,8.55291869]
[1738813566635,0.03142161,200.83,200.79,8.55291869]
[1738813566936,0.03142161,200.83,200.79,13.53291869]
[1738813567531,0.03142161,200.83,200.79,8.55291869]
[1738813567829,0.03142161,200.83,200.8,4.9798]
[1738813569635,8.55291869,200.97,200.81,8.55291869]
[1738813569834,8.55291869,200.97,200.88,8.55291869]
[1738813570133,4.9766,200.93,200.86,8.55291869]
[1738813570637,4.9766,200.93,200.86,4.9782]
[1738813570837,0.03334835,200.92,200.87,0.03140193]
[1738813571435,0.03334835,200.92,200.87,5.00940193]
[1738813572143,0.03334835,200.92,200.87,0.03140193]
[1738813572333,0.03334835,200.92,200.89,4.9775]
[1738813574737,0.03334835,200.92,200.9,4.9771]
[1738813574944,13.37494515,201.03,200.89,13.37494515]
[1738813575840,4.9751,201.0,200.93,4.9764]
[1738813576042,0.0316697,200.98,200.94,0.03275403]
[1738813578048,0.0316697,200.98,200.95,13.37494515]
[1738813578249,13.37494515,201.12,201.01,4.9745]
[1738813578748,13.37494515,201.12,200.98,13.37494515]
[1738813578952,4.9727,201.09,201.01,4.9745]
[1738813579146,4.9727,201.09,200.99,1.6141]
[1738813579450,0.03422833,201.06,201.02,0.03635618]
[1738813582646,4.9737,201.05,201.02,0.03635618]
[1738813583352,0.03422833,201.06,201.02,0.03635618]
[1738813584753,5.00762833,201.06,201.02,0.03635618]
[1738813586153,0.03422833,201.06,201.02,0.03635618]
[1738813586355,4.9737,201.05,201.02,0.03635618]
[1738813586556,0.03422833,201.06,201.02,0.03635618]
[1738813586754,4.9736,201.05,201.02,0.03635618]
[1738813586946,0.03422833,201.06,201.02,0.03635618]
[1738813587850,4.974,201.04,201.02,0.03635618]
[1738813598063,4.9741,201.03,201.02,0.03635618]
[1738813599063,4.9738,201.05,201.02,0.03635618]
[1738813599366,8.58442132,201.06,201.02,0.03635618]
[1738813600166,13.55802132,201.06,201.02,0.03635618]
[1738813601365,8.58442132,201.06,201.02,0.03635618]
[1738813601566,4.9737,201.05,201.02,0.03635618]
[1738813602163,8.55019299,201.04,201.02,0.03635618]
[1738813602758,4.9752,200.99,200.94,8.55019299]
[1738813602963,14.93,201.15,200.9,10.13229299]
[1738813602964,8.55019299,200.96,200.9,10.13229299]
[1738813603164,4.9763,200.94,200.9,1.5821]
[1738813603465,8.55019299,200.94,200.89,3.0096]
[1738813603867,13.56198366,200.94,200.89,3.04624772]
[1738813606065,8.58568366,200.94,200.89,3.04624772]
[1738813606270,8.55019299,201.04,200.96,4.9757]
[1738813606469,8.55019299,201.04,200.96,13.52589299]
[1738813606769,190.0,201.07,200.94,8.55019299]
[1738813606770,4.9749,201.0,200.94,8.55019299]
[1738813607271,4.9761,200.96,200.9,8.55019299]
[1738813607473,8.55019299,200.96,200.95,0.03157277]
[1738813607665,8.55019299,200.96,200.89,3.0096]
[1738813607867,2.3992,201.06,200.93,0.03253985]
[1738813607868,8.55019299,200.94,200.93,0.03253985]
[1738813608173,13.52649299,200.94,200.89,3.0096]
[1738813608370,13.52649299,200.94,200.91,0.03560937]
[1738813608566,0.03482525,200.94,200.91,0.03560937]
[1738813609369,5.01112525,200.94,200.91,0.03560937]
[1738813610566,0.03482525,200.94,200.91,0.03560937]
[1738813620282,13.40960115,200.94,200.91,0.03560937]
[1738813620484,4.9768,200.92,200.91,0.03560937]
[1738813628794,8.56114558,200.93,200.91,0.03560937]
[1738813628992,0.03482525,200.94,200.91,0.03560937]
[1738813631996,8.56114558,200.93,200.91,0.03560937]
[1738813632396,4.9768,200.92,200.91,0.03560937]
[1738813636504,4.9783,200.87,200.84,1.5761]
[1738813636703,4.9783,200.87,200.82,3.1271]
[1738813636704,8.56114558,200.87,200.82,3.1271]
[1738813637002,8.56114558,200.85,200.82,3.1271]
[1738813638300,0.03412024,200.86,200.82,3.1271]
[1738813642909,0.03412024,200.86,200.82,8.1064]
[1738813643807,0.03412024,200.86,200.82,3.1271]
[1738813645009,4.9786,200.85,200.82,3.1271]
[1738813646005,0.03412024,200.86,200.82,3.1271]
[1738813646513,4.979,200.83,200.82,1.556]
[1738813646706,0.03412024,200.86,200.81,0.03792396]
[1738813647211,4.979,200.83,200.81,0.03792396]
[1738813647613,0.03412024,200.86,200.81,0.03792396]
[1738813648810,4.9788,200.84,200.81,0.03792396]
[1738813649011,0.03412024,200.86,200.81,0.03792396]
[1738813649708,0.03412024,200.86,200.82,4.9793]
[1738813652710,203.38329458,200.97,200.83,13.38329458]
[1738813653014,13.38329458,200.94,200.82,1.5012]
[1738813653414,13.38329458,200.94,200.82,6.4803]
[1738813653415,4.9778,200.89,200.82,6.4803]
[1738813653616,13.38329458,200.94,200.82,6.4803]
[1738813653816,0.03623698,200.88,200.83,0.03143448]
[1738813654819,5.01423698,200.88,200.83,0.03143448]
[1738813655615,4.9786,200.85,200.83,0.03143448]
[1738813657517,4.9788,200.84,200.83,0.03143448]
[1738813657717,0.03623698,200.88,200.83,0.03143448]
[1738813657919,4.9782,200.87,200.83,0.03143448]
[1738813658618,0.03623698,200.88,200.83,0.03143448]
[1738813658813,0.03623698,200.88,200.83,5.01043448]
[1738813659718,0.03623698,200.88,200.83,0.03143448]
[1738813660017,13.38329458,200.97,200.83,13.41472906]
[1738813660314,13.38329458,200.97,200.84,1.6078]
[1738813660509,4.9766,200.93,200.84,1.6078]
[1738813660708,4.9766,200.93,200.85,1.5568]
[1738813661218,0.03753055,200.91,200.87,0.0317045]
[1738813661421,0.03753055,200.91,200.87,5.0095045]
[1738813661715,0.03753055,200.91,200.87,0.0317045]
[1738813662911,4.9773,200.9,200.87,0.0317045]
[1738813663219,13.42082513,200.91,200.87,0.0317045]
[1738813664122,18.36109458,200.88,200.87,4.5e-06]
[1738813675028,4.9798,200.8,200.78,1.4592]
[1738813675226,13.38329458,200.83,200.75,28.99045511]
[1738813675626,13.38329458,200.83,200.75,27.46145511]
[1738813675827,13.38329458,200.8,200.75,27.46145511]
[1738813676227,4.9804,200.78,200.75,27.49661845]
[1738813676727,13.55403105,200.78,200.75,27.49661845]
[1738813676927,13.55403105,200.78,200.75,6.8900934]
[1738813677129,13.55403105,200.78,200.75,0.03516334]
[1738813678639,4.9804,200.78,200.75,0.03516334]
[1738813680539,0.0329981,200.8,200.75,0.03516334]
[1738813681541,4.98,200.79,200.75,0.03516334]
[1738813681741,0.0329981,200.8,200.75,0.03516334]
[1738813683440,0.0329981,200.8,200.75,5.01606334]
[1738813683835,0.0329981,200.8,200.75,0.03516334]
[1738813684742,4.9804,200.78,200.75,0.03516334]
[1738813685447,0.0329981,200.8,200.75,0.03516334]
[1738813685749,5.0128981,200.8,200.75,0.03516334]
[1738813686644,0.0329981,200.8,200.75,0.03516334]
[1738813687147,5.0128981,200.8,200.75,0.03516334]
[1738813687349,0.0329981,200.8,200.75,0.03516334]
[1738813688847,4.9804,200.78,200.75,0.03516334]
[1738813689647,5.0129981,200.8,200.75,0.03516334]
[1738813689851,0.0329981,200.8,200.75,0.03516334]
[1738813691053,4.9804,200.78,200.75,0.03516334]
[1738813691445,0.0329981,200.8,200.75,0.03516334]
[1738813693753,5.0128981,200.8,200.75,0.03516334]
[1738813695050,0.0329981,200.8,200.75,0.03516334]
[1738813695651,0.0329981,200.8,200.77,4.9805]
[1738813695953,0.0329981,200.8,200.75,0.03516334]
[1738813696255,0.0329981,200.8,200.79,4.98]
[1738813697353,0.0329981,200.8,200.77,4.9803]
[1738813698147,13.39625685,200.87,200.75,1.49886334]
[1738813698349,13.39625685,200.9,200.75,1.49886334]
[1738813698550,4.9784,200.86,200.75,1.4637]
[1738813698756,8.56766753,200.85,200.77,13.54806753]
[1738813699352,0.03547823,200.83,200.79,0.03602144]
[1738813701056,0.03547823,200.83,200.79,8.60368897]
[1738813701756,0.03547823,200.83,200.8,1.5779]
[1738813701956,0.03547823,200.83,200.8,3.0814]
[1738813702459,8.60314576,200.83,200.8,1.5779]
[1738813702755,4.9795,200.81,200.8,1.5779]
[1738813704158,4.9795,200.81,200.79,0.03602144]
[1738813706164,4.9793,200.82,200.79,0.03602144]
[1738813708060,8.60314576,200.83,200.79,0.03602144]
[1738813708266,8.56766753,200.81,200.79,0.03602144]
[1738813708762,4.9798,200.8,200.79,0.03602144]
[1738813714567,8.56766753,200.81,200.79,0.03602144]
[1738813714767,8.60314576,200.83,200.79,0.03602144]
[1738813715270,4.9793,200.82,200.79,0.03602144]
[1738813715865,8.56766753,200.81,200.79,0.03602144]
[1738813716070,4.9798,200.8,200.79,0.03602144]
[1738813718269,8.56766753,200.81,200.79,0.03602144]
[1738813720172,4.9794,200.82,200.79,0.03602144]
[1738813721975,4.9798,200.8,200.79,0.03602144]
[1738813722171,8.56766753,200.81,200.79,0.03602144]
[1738813723675,8.60314576,200.83,200.79,0.03602144]
[1738813724070,0.03547823,200.83,200.79,0.03602144]
[1738813724270,0.03547823,200.83,200.79,5.01602144]
[1738813724473,0.03547823,200.83,200.79,0.03602144]
[1738813725770,0.03547823,200.83,200.79,8.60368897]
[1738813726272,0.03547823,200.83,200.79,10.10318897]
[1738813727781,0.03547823,200.83,200.81,4.9795]
[1738813728480,4.9793,200.82,200.79,1.53552144]
[1738813728677,0.03547823,200.83,200.79,1.53552144]
[1738813728877,8.60314576,200.83,200.79,0.03602144]
[1738813729680,4.9797,200.81,200.79,0.03602144]
[1738813736089,8.60314576,200.83,200.79,0.03602144]
[1738813736284,4.9798,200.8,200.79,0.03602144]
[1738813739289,4.9812,200.75,200.73,6.85493006]
[1738813741091,4.9812,200.75,200.72,0.03709185]
[1738813742603,4.9814,200.74,200.72,0.03709185]
[1738813742989,0.03543126,200.76,200.72,0.03709185]
[1738813742990,8.56766753,200.75,200.72,0.03709185]
[1738813743190,4.9815,200.73,200.72,0.03709185]
[1738813743902,13.54916753,200.73,200.72,0.03709185]
[1738813744102,13.54916753,200.73,200.72,9.185e-05]
[1738813748907,8.56766753,200.73,200.62,1.5817]
[1738813749204,4.9831,200.67,200.62,1.5817]
[1738813749605,4.9833,200.66,200.62,1.5817]
[1738813749799,4.9833,200.66,200.61,10.05276753]
[1738813749996,8.56766753,200.68,200.61,10.05276753]
[1738813750202,4.984,200.63,200.61,0.03532146]
[1738813750407,4.984,200.63,200.57,69.95646541]
[1738813750408,4.984,200.63,200.57,64.97116541]
[1738813750706,4.984,200.63,200.6,0.0318116]
[1738813751212,8.56766753,200.64,200.6,0.0318116]
[1738813751504,8.56766753,200.62,200.6,0.0318116]
[1738813752408,4.9845,200.61,200.6,0.0318116]
[1738813753803,8.56766753,200.62,200.6,0.0318116]
[1738813754698,4.9845,200.61,200.6,0.0318116]
[1738813758517,8.56766753,200.62,200.51,10.15086753]
[1738813758712,13.55276753,200.59,200.53,4.9865]
[1738813759213,8.56766753,200.57,200.51,10.15086753]
[1738813759414,8.56766753,200.57,200.51,6.5701]
[1738813759415,13.55316753,200.57,200.51,6.5701]
[1738813759715,0.03803928,200.56,200.52,0.03814441]
[1738813760911,8.56766753,200.55,200.52,0.03814441]
[1738813761808,13.55366753,200.55,200.52,0.03814441]
[1738813763116,8.56766753,200.55,200.52,0.03814441]
[1738813763410,4.9863,200.54,200.52,0.03814441]
[1738813763617,0.03803928,200.56,200.52,0.03814441]
[1738813763911,5.02383928,200.56,200.52,0.03814441]
[1738813773316,8.56766753,200.55,200.52,0.03814441]
[1738813773721,0.03803928,200.56,200.52,0.03814441]
[1738813774718,4.986,200.55,200.52,0.03814441]
[1738813780429,0.03803928,200.56,200.53,4.9865]
[1738813784322,0.03803928,200.56,200.52,5.02474441]
[1738813786834,5.02383928,200.56,200.52,5.02474441]
[1738813787327,5.02383928,200.56,200.52,0.03814441]
[1738813787533,4.9861,200.55,200.52,0.03814441]
[1738813789731,0.03803928,200.56,200.55,4.986]
[1738813789937,8.56766753,200.64,200.54,8.56766753]
[1738813790838,4.9843,200.62,200.56,4.9857]
[1738813791038,4.9843,200.62,200.54,8.56766753]
[1738813791039,0.03519838,200.61,200.57,0.03419442]